[Event "European FIDE World Cup Qualifier 2021"]
[White "Djurhuus, Rune"]
[Black "Potkin, Vladimir"]
[WhiteFideId "1500082"]
[BlackFideId "4131061"]
[WhiteElo "2413"]
[BlackElo "2578"]
[Result "1/2-1/2"]
[Round "01-02"]
[TimeControl "7200+30"]
[Date "Tue May 25 2021"]
[WhiteClock "0:36:49"]
[BlackClock "0:12:34"]

1. e4 {[%clk 0:00:00]}  c5 {[%clk 2:00:01]} 2. f4 {[%clk 2:00:32]}  d5 {[%clk 1:58:39]} 3. exd5 {[%clk 1:59:49]}  Qxd5 {[%clk 1:57:05]} 4. Nc3 {[%clk 2:01:40]}  Qd8 {[%clk 1:57:30]} 5. Nf3 {[%clk 2:01:29]}  Nf6 {[%clk 1:56:50]} 6. Ne5 {[%clk 2:01:36]}  e6 {[%clk 1:56:18]} 7. Bb5+ {[%clk 1:56:05]}  Nbd7 {[%clk 1:55:54]} 8. Qe2 {[%clk 1:52:30]}  Be7 {[%clk 1:55:04]} 9. b3 {[%clk 1:52:03]}  O-O {[%clk 1:54:55]} 10. Bb2 {[%clk 1:51:43]}  Nd5 {[%clk 1:45:23]} 11. Nxd5 {[%clk 1:46:59]}  exd5 {[%clk 1:44:14]} 12. O-O-O {[%clk 1:44:13]}  d4 {[%clk 1:43:33]} 13. Bd3 {[%clk 1:42:27]}  Nxe5 {[%clk 1:34:40]} 14. fxe5 {[%clk 1:36:13]}  Be6 {[%clk 1:35:06]} 15. h4 {[%clk 1:42:56]}  Qd7 {[%clk 1:32:17]} 16. Rdf1 {[%clk 1:40:27]}  f5 {[%clk 1:08:41]} 17. exf6 {[%clk 1:39:43]}  Rxf6 {[%clk 1:06:15]} 18. Rxf6 {[%clk 1:36:53]}  Bxf6 {[%clk 1:06:40]} 19. Qh5 {[%clk 1:33:35]}  g6 {[%clk 1:06:49]} 20. Qxc5 {[%clk 1:33:54]}  Qd5 {[%clk 0:59:09]} 21. Qxd5 {[%clk 1:32:39]}  Bxd5 {[%clk 0:59:33]} 22. h5 {[%clk 1:35:04]}  Kg7 {[%clk 0:57:28]} 23. h6+ {[%clk 1:27:18]}  Kf7 {[%clk 0:57:21]} 24. Rf1 {[%clk 1:28:24]}  Ke6 {[%clk 0:57:47]} 25. Be2 {[%clk 1:13:26]}  Be5 {[%clk 0:52:14]} 26. Bg4+ {[%clk 1:08:10]}  Kd6 {[%clk 0:51:58]} 27. Ba3+ {[%clk 1:07:52]}  Kc6 {[%clk 0:52:20]} 28. Bf3 {[%clk 1:08:13]}  Rc8 {[%clk 0:48:17]} 29. Kd1 {[%clk 1:06:37]}  Bxf3+ {[%clk 0:46:58]} 30. Rxf3 {[%clk 1:07:41]}  Kd5 {[%clk 0:47:25]} 31. Bb2 {[%clk 1:01:09]}  g5 {[%clk 0:39:47]} 32. c4+ {[%clk 0:49:19]}  dxc3 {[%clk 0:39:59]} 33. Bxc3 {[%clk 0:56:45]}  Bxc3 {[%clk 0:37:23]} 34. Rxc3 {[%clk 0:49:59]}  Rxc3 {[%clk 0:35:45]} 35. dxc3 {[%clk 0:53:49]}  Ke4 {[%clk 0:36:13]} 36. Ke2 {[%clk 0:47:40]}  Kf4 {[%clk 0:18:01]} 37. c4 {[%clk 0:40:51]}  a5 {[%clk 0:17:42]} 38. c5 {[%clk 0:36:20]}  Ke4 {[%clk 0:13:08]} 39. Kf2 {[%clk 0:28:32]}  Kd4 {[%clk 0:11:19]} 40. Kf3 {[%clk 0:34:57]}  Kc3 {[%clk 0:12:09]} 41. Kg4 {[%clk 0:35:25]}  Kb2 {[%clk 0:12:09]} 42. Kxg5 {[%clk 0:35:52]}  Kxa2 {[%clk 0:12:35]} 43. Kf4 {[%clk 0:36:12]}  Kxb3 {[%clk 0:13:01]} 44. g4 {[%clk 0:36:39]}  a4 {[%clk 0:13:22]} 45. g5 {[%clk 0:37:34]}  a3 {[%clk 0:14:14]} 46. g6 {[%clk 0:37:34]}  a2 {[%clk 0:14:14]} 47. g7 {[%clk 0:38:00]}  a1=Q {[%clk 0:14:39]} 48. g8=Q+ {[%clk 0:38:22]}  Kb4 {[%clk 0:15:01]} 49. Qxh7 {[%clk 0:38:46]}  Qc1+ {[%clk 0:14:57]} 50. Kf3 {[%clk 0:38:48]}  Qf1+ {[%clk 0:15:07]} 51. Kg3 {[%clk 0:38:53]}  Qg1+ {[%clk 0:15:20]} 52. Kf4 {[%clk 0:39:04]}  Qc1+ {[%clk 0:15:33]} 53. Kg4 {[%clk 0:39:02]}  Qg1+ {[%clk 0:15:44]} 54. Kh4 {[%clk 0:39:19]}  Qd4+ {[%clk 0:12:55]} 55. Kg5 {[%clk 0:36:42]}  Qd8+ {[%clk 0:10:55]} 56. Kf4 {[%clk 0:34:30]}  Qd2+ {[%clk 0:10:30]} 57. Ke5 {[%clk 0:36:46]}  Qc3+ {[%clk 0:10:30]} 58. Ke6 {[%clk 0:37:02]}  Qc4+ {[%clk 0:10:35]} 59. Kd7 {[%clk 0:36:30]}  Qd5+ {[%clk 0:10:46]} 60. Kc8 {[%clk 0:36:10]}  Qxc5+ {[%clk 0:10:38]} 61. Kxb7 {[%clk 0:34:38]}  Qd5+ {[%clk 0:11:04]} 62. Kc7 {[%clk 0:34:09]}  Qa5+ {[%clk 0:10:18]} 63. Kd6 {[%clk 0:35:08]}  Qc5+ {[%clk 0:10:40]} 64. Ke6 {[%clk 0:35:32]}  Qc6+ {[%clk 0:10:50]} 65. Ke5 {[%clk 0:35:32]}  Qc5+ {[%clk 0:10:59]} 66. Kf4 {[%clk 0:35:23]}  Qc1+ {[%clk 0:11:14]} 67. Ke5 {[%clk 0:36:05]}  Qc5+ {[%clk 0:11:40]} 68. Kf4 {[%clk 0:36:49]}  Qc1+ {[%clk 0:12:07]} 69. Ke5 {[%clk 0:36:49]}  Qc5+ {[%clk 0:12:34]} 1/2-1/2

[Event "Sarajevo Club Championship 2021"]
[White "Sitnic, Adnan"]
[Black "Hodzic, Nihad"]
[WhiteElo "2219"]
[BlackElo "2284"]
[Result "1/2-1/2"]
[Round "09"]
[TimeControl "900+5"]
[Date "2021.06.05"]
[WhiteClock "0:18:00"]
[BlackClock "0:22:24"]

1. e4 {[%clk 1:30:54]}  c5 {[%clk 1:30:53]} 2. f4 {[%clk 1:31:18]}  e6 {[%clk 1:31:13]} 3. Nf3 {[%clk 1:31:36]}  Be7 {[%clk 1:31:39]} 4. c3 {[%clk 1:23:14]}  d5 {[%clk 1:32:03]} 5. d3 {[%clk 1:23:33]}  Nc6 {[%clk 1:32:15]} 6. Be2 {[%clk 1:23:46]}  Nf6 {[%clk 1:30:22]} 7. e5 {[%clk 1:24:06]}  Ng4 {[%clk 1:28:57]} 8. Na3 {[%clk 1:19:56]}  Bd7 {[%clk 1:27:07]} 9. Nc2 {[%clk 1:18:43]}  O-O {[%clk 1:23:51]} 10. O-O {[%clk 1:18:04]}  f6 {[%clk 1:20:07]} 11. d4 {[%clk 1:17:03]}  Qb6 {[%clk 1:18:25]} 12. h3 {[%clk 1:15:58]}  cxd4 {[%clk 1:10:37]} 13. cxd4 {[%clk 1:15:00]}  Nh6 {[%clk 1:09:28]} 14. g4 {[%clk 1:12:36]}  fxe5 {[%clk 1:07:38]} 15. fxe5 {[%clk 1:12:36]}  Nf7 {[%clk 1:07:27]} 16. Kg2 {[%clk 1:10:36]}  Nb4 {[%clk 1:04:53]} 17. Nce1 {[%clk 1:02:29]}  Bb5 {[%clk 1:04:01]} 18. Bxb5 {[%clk 0:40:43]}  Qxb5 {[%clk 1:04:14]} 19. a3 {[%clk 0:40:23]}  Nc6 {[%clk 1:04:23]} 20. Nd3 {[%clk 0:39:06]}  Rac8 {[%clk 0:55:13]} 21. b4 {[%clk 0:33:51]}  a5 {[%clk 0:35:52]} 22. a4 {[%clk 0:29:42]}  Qc4 {[%clk 0:35:46]} 23. Nf4 {[%clk 0:29:27]}  Ng5 {[%clk 0:28:15]} 24. Nxg5 {[%clk 0:24:06]}  Bxg5 {[%clk 0:27:34]} 25. Nxe6 {[%clk 0:24:14]}  Rxf1 {[%clk 0:27:59]} 26. Qxf1 {[%clk 0:24:37]}  Qxf1+ {[%clk 0:28:22]} 27. Kxf1 {[%clk 0:24:56]}  Nxd4 {[%clk 0:28:49]} 28. Nxg5 {[%clk 0:23:21]}  Nb3 {[%clk 0:29:00]} 29. Rb1 {[%clk 0:23:34]}  Rxc1+ {[%clk 0:29:17]} 30. Rxc1 {[%clk 0:24:00]}  Nxc1 {[%clk 0:29:41]} 31. bxa5 {[%clk 0:24:03]}  h6 {[%clk 0:24:21]} 32. Ne6 {[%clk 0:22:02]}  Nb3 {[%clk 0:24:46]} 33. Nc7 {[%clk 0:21:40]}  Nxa5 {[%clk 0:23:34]} 34. e6 {[%clk 0:21:39]}  Nc6 {[%clk 0:23:18]} 35. Nxd5 {[%clk 0:22:02]}  Nd4 {[%clk 0:22:02]} 36. e7 {[%clk 0:19:36]}  Kf7 {[%clk 0:22:27]} 37. Kf2 {[%clk 0:19:48]}  Nb3 {[%clk 0:22:07]} 38. Ke3 {[%clk 0:19:39]}  Nc5 {[%clk 0:22:32]} 39. Kd4 {[%clk 0:19:03]}  Nxa4 {[%clk 0:22:31]} 40. Ke5 {[%clk 0:18:46]}  Nc5 {[%clk 0:22:17]} 41. Kd6 {[%clk 0:18:34]}  Ne4+ {[%clk 0:21:45]} 42. Kd7 {[%clk 0:18:35]}  Nc5+ {[%clk 0:22:04]} 43. Kd8 {[%clk 0:18:00]}  Ne6+ {[%clk 0:22:24]} 1/2-1/2

[Event "Famalicao Chess Tournament 2021"]
[White "Campora, Daniel H."]
[Black "Martins, Diogo Faria Oliveira"]
[WhiteFideId "100013"]
[BlackFideId "1926934"]
[WhiteElo "2420"]
[BlackElo "2031"]
[Result "1-0"]
[Round "03"]
[TimeControl "5400+30"]
[Date "2021.07.31"]
[WhiteClock "0:00:00"]
[BlackClock "0:00:00"]

1. e4 {[%clk 0:00:00]}  c5 {[%clk 0:00:00]} 2. f4 {[%clk 0:00:00]}  g6 {[%clk 0:00:00]} 3. Nf3 {[%clk 0:00:00]}  Bg7 {[%clk 0:00:00]} 4. Nc3 {[%clk 0:00:00]}  Nc6 {[%clk 0:00:00]} 5. Bb5 {[%clk 0:00:00]}  Nd4 {[%clk 0:00:00]} 6. Bc4 {[%clk 0:00:00]}  d6 {[%clk 0:00:00]} 7. Nxd4 {[%clk 0:00:00]}  cxd4 {[%clk 0:00:00]} 8. Ne2 {[%clk 0:00:00]}  Nf6 {[%clk 0:00:00]} 9. Bb5+ {[%clk 0:00:00]}  Nd7 {[%clk 0:00:00]} 10. c3 {[%clk 0:00:00]}  dxc3 {[%clk 0:00:00]} 11. dxc3 {[%clk 0:00:00]}  Qb6 {[%clk 0:00:00]} 12. Qb3 {[%clk 0:00:00]}  O-O {[%clk 0:00:00]} 13. Bxd7 {[%clk 0:00:00]}  Qxb3 {[%clk 0:00:00]} 14. axb3 {[%clk 0:00:00]}  Bxd7 {[%clk 0:00:00]} 15. Be3 {[%clk 0:00:00]}  a6 {[%clk 0:00:00]} 16. Ng3 {[%clk 0:00:00]}  f5 {[%clk 0:00:00]} 17. O-O {[%clk 0:00:00]}  Bc6 {[%clk 0:00:00]} 18. exf5 {[%clk 0:00:00]}  gxf5 {[%clk 0:00:00]} 19. Rfe1 {[%clk 0:00:00]}  e5 {[%clk 0:00:00]} 20. Rad1 {[%clk 0:00:00]}  Rad8 {[%clk 0:00:00]} 21. Rd2 {[%clk 0:00:00]}  Bh6 {[%clk 0:00:00]} 22. Rf2 {[%clk 0:00:00]}  Rd7 {[%clk 0:00:00]} 23. Bd2 {[%clk 0:00:00]}  e4 {[%clk 0:00:00]} 24. Be3 {[%clk 0:00:00]}  Bb5 {[%clk 0:00:00]} 25. Rd2 {[%clk 0:00:00]}  Bd3 {[%clk 0:00:00]} 26. Nh1 {[%clk 0:00:00]}  d5 {[%clk 0:00:00]} 27. Nf2 {[%clk 0:00:00]}  d4 {[%clk 0:00:00]} 28. cxd4 {[%clk 0:00:00]}  Bg7 {[%clk 0:00:00]} 29. Nxd3 {[%clk 0:00:00]}  exd3 {[%clk 0:00:00]} 30. Rxd3 {[%clk 0:00:00]}  Re8 {[%clk 0:00:00]} 31. Kf1 {[%clk 0:00:00]}  Re4 {[%clk 0:00:00]} 32. g3 {[%clk 0:00:00]}  Kf7 {[%clk 0:00:00]} 33. Red1 {[%clk 0:00:00]}  Ke6 {[%clk 0:00:00]} 34. d5+ {[%clk 0:00:00]}  Kd6 {[%clk 0:00:00]} 35. R1d2 {[%clk 0:00:00]}  Rc7 {[%clk 0:00:00]} 36. Kf2 {[%clk 0:00:00]}  Rc1 {[%clk 0:00:00]} 37. g4 {[%clk 0:00:00]}  fxg4 {[%clk 0:00:00]} 38. Re2 {[%clk 0:00:00]}  Rb1 {[%clk 0:00:00]} 39. Bc5+ {[%clk 0:00:00]}  Kxc5 {[%clk 0:00:00]} 40. Rxe4 {[%clk 0:00:00]}  Rxb2+ {[%clk 0:00:00]} 41. Kg3 {[%clk 0:00:00]}  Bf8 {[%clk 0:00:00]} 42. d6 {[%clk 0:00:00]}  Bxd6 {[%clk 0:00:00]} 43. Rc4+ {[%clk 0:00:00]}  Kb5 {[%clk 0:00:00]} 44. Rd5+ {[%clk 0:00:00]}  Kb6 {[%clk 0:00:00]} 45. Rxd6+ {[%clk 0:00:00]}  Kb5 {[%clk 0:00:00]} 46. Rd5+ {[%clk 0:00:00]} 1-0

[Event "European Women Chess Championship 2021"]
[White "Lehaci, Miruna-Daria"]
[Black "Nastase, Andreea-Cristina"]
[WhiteFideId "1234765"]
[BlackFideId "1221183"]
[WhiteElo "2267"]
[BlackElo "2074"]
[Result "1-0"]
[Round "04"]
[TimeControl "5400+30"]
[Date "2021.08.12"]
[WhiteClock "0:49:06"]
[BlackClock "0:37:48"]

1. e4 {[%clk 1:30:58]}  c5 {[%clk 1:30:56]} 2. f4 {[%clk 1:30:58]}  d6 {[%clk 1:29:11]} 3. Nf3 {[%clk 1:31:17]}  Nc6 {[%clk 1:29:33]} 4. Bb5 {[%clk 1:31:16]}  Bg4 {[%clk 1:27:48]} 5. h3 {[%clk 1:30:06]}  Bd7 {[%clk 1:27:32]} 6. O-O {[%clk 1:29:49]}  e6 {[%clk 1:26:13]} 7. c4 {[%clk 1:27:58]}  Nd4 {[%clk 1:24:58]} 8. Nxd4 {[%clk 1:21:08]}  cxd4 {[%clk 1:25:23]} 9. Bxd7+ {[%clk 1:20:36]}  Qxd7 {[%clk 1:25:49]} 10. f5 {[%clk 1:20:20]}  e5 {[%clk 1:23:56]} 11. d3 {[%clk 1:19:37]}  g6 {[%clk 1:23:37]} 12. f6 {[%clk 1:14:28]}  h5 {[%clk 1:21:03]} 13. a3 {[%clk 1:06:44]}  Bh6 {[%clk 1:19:19]} 14. Bxh6 {[%clk 1:04:39]}  Rxh6 {[%clk 1:19:05]} 15. Qc1 {[%clk 1:03:43]}  Qe6 {[%clk 1:18:27]} 16. b4 {[%clk 1:00:25]}  Rh8 {[%clk 1:18:01]} 17. Qg5 {[%clk 0:55:49]}  h4 {[%clk 1:18:06]} 18. Ra2 {[%clk 0:52:12]}  Rh5 {[%clk 1:18:06]} 19. Qc1 {[%clk 0:52:15]}  b5 {[%clk 1:12:19]} 20. cxb5 {[%clk 0:49:09]}  Rc8 {[%clk 1:11:04]} 21. Rc2 {[%clk 0:48:30]}  Rxc2 {[%clk 1:07:24]} 22. Qxc2 {[%clk 0:48:49]}  Nxf6 {[%clk 1:07:24]} 23. Kh2 {[%clk 0:38:11]}  d5 {[%clk 1:05:23]} 24. Nd2 {[%clk 0:35:26]}  dxe4 {[%clk 1:04:42]} 25. dxe4 {[%clk 0:35:40]}  Nd7 {[%clk 1:02:06]} 26. Qc7 {[%clk 0:33:52]}  Qb6 {[%clk 1:01:48]} 27. Qc8+ {[%clk 0:33:27]}  Ke7 {[%clk 1:01:26]} 28. Nc4 {[%clk 0:32:50]}  Qb8 {[%clk 0:59:58]} 29. Qc6 {[%clk 0:31:56]}  f6 {[%clk 0:58:48]} 30. Qd5 {[%clk 0:30:09]}  Nb6 {[%clk 0:52:54]} 31. Qc6 {[%clk 0:26:43]}  Nd7 {[%clk 0:53:33]} 32. Qd5 {[%clk 0:26:43]}  Nb6 {[%clk 0:53:33]} 33. Qc5+ {[%clk 0:25:43]}  Kf7 {[%clk 0:52:08]} 34. Qc6 {[%clk 0:25:27]}  Qd8 {[%clk 0:52:07]} 35. Nd6+ {[%clk 0:22:46]}  Kg8 {[%clk 0:48:55]} 36. Ne8 {[%clk 0:22:09]}  Kh8 {[%clk 0:38:27]} 37. Nxf6 {[%clk 0:20:51]}  Rg5 {[%clk 0:37:31]} 38. Qb7 {[%clk 0:19:58]}  Rh5 {[%clk 0:37:22]} 39. Nxh5 {[%clk 0:49:06]}  gxh5 {[%clk 0:37:48]} 40. Qf7 {[%clk 0:49:06]} 1-0

[Event "European Women Chess Championship 2021"]
[White "Lehaci, Miruna-Daria"]
[Black "Nilssen, Ellen Fredericia"]
[WhiteFideId "1234765"]
[BlackFideId "1441230"]
[WhiteElo "2267"]
[BlackElo "2081"]
[Result "0-1"]
[Round "06"]
[TimeControl "5400+30"]
[Date "2021.08.14"]
[WhiteClock "0:14:33"]
[BlackClock "0:32:25"]

1. e4 {[%clk 1:31:28]}  c5 {[%clk 1:31:12]} 2. f4 {[%clk 1:31:28]}  d6 {[%clk 1:31:12]} 3. Nf3 {[%clk 1:31:28]}  g6 {[%clk 1:31:12]} 4. g3 {[%clk 1:30:58]}  Bg7 {[%clk 1:30:34]} 5. Bg2 {[%clk 1:30:34]}  e6 {[%clk 1:28:49]} 6. O-O {[%clk 1:29:33]}  Ne7 {[%clk 1:27:31]} 7. c3 {[%clk 1:27:14]}  O-O {[%clk 1:21:46]} 8. Kh1 {[%clk 1:23:07]}  b6 {[%clk 1:15:09]} 9. Na3 {[%clk 1:10:52]}  Bb7 {[%clk 1:13:56]} 10. Qe2 {[%clk 1:10:20]}  Nbc6 {[%clk 1:06:52]} 11. Nc2 {[%clk 1:07:28]}  Qd7 {[%clk 1:03:18]} 12. Re1 {[%clk 1:04:50]}  Rfd8 {[%clk 0:55:03]} 13. d4 {[%clk 1:02:10]}  Rac8 {[%clk 0:52:12]} 14. b3 {[%clk 0:56:28]}  Rc7 {[%clk 0:48:11]} 15. Bb2 {[%clk 0:54:42]}  cxd4 {[%clk 0:46:22]} 16. cxd4 {[%clk 0:54:38]}  Rdc8 {[%clk 0:45:36]} 17. Rac1 {[%clk 0:53:06]}  Nb8 {[%clk 0:41:43]} 18. Red1 {[%clk 0:41:01]}  a5 {[%clk 0:38:32]} 19. e5 {[%clk 0:35:03]}  Nd5 {[%clk 0:37:37]} 20. Ng5 {[%clk 0:33:52]}  Rxc2 {[%clk 0:35:07]} 21. Rxc2 {[%clk 0:17:47]}  Rxc2 {[%clk 0:35:30]} 22. Rd2 {[%clk 0:14:12]}  Rxd2 {[%clk 0:35:02]} 23. Qxd2 {[%clk 0:14:38]}  dxe5 {[%clk 0:35:08]} 24. fxe5 {[%clk 0:14:33]}  Nb4 {[%clk 0:32:25]} 0-1

[Event "European Senior Team Championship 65+ 2021"]
[White "Becvar, Miroslav"]
[Black "Postler, Reinhard"]
[WhiteFideId "393592"]
[BlackFideId "4611608"]
[WhiteElo "1863"]
[BlackElo "2250"]
[Result "1/2-1/2"]
[Round "01"]
[TimeControl "5400+30"]
[Date "2021.08.30"]
[WhiteClock "0:28:38"]
[BlackClock "0:17:17"]

1. e4 {[%clk 1:30:58]}  c5 {[%clk 1:30:54]} 2. f4 {[%clk 1:31:24]}  e6 {[%clk 1:31:20]} 3. Nf3 {[%clk 1:31:24]}  Nc6 {[%clk 1:31:42]} 4. Bb5 {[%clk 1:31:38]}  Nge7 {[%clk 1:31:34]} 5. c3 {[%clk 1:31:51]}  a6 {[%clk 1:30:47]} 6. Ba4 {[%clk 1:32:00]}  b5 {[%clk 1:30:27]} 7. Bc2 {[%clk 1:32:25]}  d5 {[%clk 1:28:50]} 8. d4 {[%clk 1:31:16]}  cxd4 {[%clk 1:26:16]} 9. Nxd4 {[%clk 1:31:27]}  Nxd4 {[%clk 1:25:23]} 10. Qxd4 {[%clk 1:29:00]}  Nc6 {[%clk 1:22:09]} 11. Qf2 {[%clk 1:21:33]}  Be7 {[%clk 1:09:20]} 12. O-O {[%clk 1:19:19]}  dxe4 {[%clk 1:08:04]} 13. Bxe4 {[%clk 1:18:09]}  Bb7 {[%clk 1:08:25]} 14. Be3 {[%clk 1:13:45]}  O-O {[%clk 1:07:21]} 15. Nd2 {[%clk 1:12:41]}  Qc8 {[%clk 1:04:01]} 16. Rad1 {[%clk 1:01:25]}  f5 {[%clk 0:54:18]} 17. Bc2 {[%clk 0:59:06]}  Na5 {[%clk 0:51:36]} 18. Bd4 {[%clk 0:47:12]}  Bd5 {[%clk 0:46:33]} 19. Bb1 {[%clk 0:43:06]}  Nc4 {[%clk 0:42:09]} 20. Nb3 {[%clk 0:36:57]}  Qc6 {[%clk 0:38:16]} 21. Rfe1 {[%clk 0:35:36]}  Rae8 {[%clk 0:33:29]} 22. Re2 {[%clk 0:35:45]}  a5 {[%clk 0:28:19]} 23. Rde1 {[%clk 0:33:34]}  a4 {[%clk 0:27:53]} 24. Nc5 {[%clk 0:32:08]}  Bf6 {[%clk 0:24:08]} 25. Nd3 {[%clk 0:31:20]}  Bxd4 {[%clk 0:18:41]} 26. Qxd4 {[%clk 0:31:42]}  Rd8 {[%clk 0:17:17]} 27. Nb4 {[%clk 0:28:38]} 1/2-1/2

[Event "FIDE Online Chess Olympiad Division 2 Pool C 2021"]
[White "Gjergji, Rozana"]
[Black "Shvayger, Yuliya"]
[WhiteFideId "4700147"]
[BlackFideId "14100126"]
[WhiteElo "1928"]
[BlackElo "2260"]
[Result "0-1"]
[Round "02"]
[TimeControl "900+5"]
[Date "2021.09.02"]
[WhiteClock "0:05:50"]
[BlackClock "0:07:20"]

1. e4 {[%clk 0:15:02]}  c5 {[%clk 0:15:02]} 2. f4 {[%clk 0:15:04]}  Nc6 {[%clk 0:14:51]} 3. Nf3 {[%clk 0:15:07]}  g6 {[%clk 0:14:52]} 4. c3 {[%clk 0:15:06]}  d5 {[%clk 0:14:46]} 5. e5 {[%clk 0:15:03]}  Bg7 {[%clk 0:14:18]} 6. d4 {[%clk 0:14:55]}  cxd4 {[%clk 0:14:20]} 7. Nxd4 {[%clk 0:14:50]}  h5 {[%clk 0:13:28]} 8. Na3 {[%clk 0:14:44]}  Nh6 {[%clk 0:13:25]} 9. Nac2 {[%clk 0:14:44]}  O-O {[%clk 0:13:20]} 10. Ne3 {[%clk 0:14:41]}  Nxd4 {[%clk 0:11:45]} 11. Qxd4 {[%clk 0:14:35]}  Nf5 {[%clk 0:11:08]} 12. Nxf5 {[%clk 0:13:58]}  Bxf5 {[%clk 0:11:11]} 13. b3 {[%clk 0:13:25]}  Be4 {[%clk 0:10:56]} 14. Ba3 {[%clk 0:13:16]}  f6 {[%clk 0:10:41]} 15. Qb4 {[%clk 0:11:30]}  fxe5 {[%clk 0:10:21]} 16. Qxe7 {[%clk 0:10:54]}  Qc8 {[%clk 0:10:18]} 17. c4 {[%clk 0:10:38]}  exf4 {[%clk 0:09:29]} 18. Rc1 {[%clk 0:10:35]}  Qg4 {[%clk 0:09:02]} 19. Qxb7 {[%clk 0:07:47]}  Rfe8 {[%clk 0:08:53]} 20. Kd2 {[%clk 0:07:07]}  dxc4 {[%clk 0:07:51]} 21. Bxc4+ {[%clk 0:07:01]}  Kh8 {[%clk 0:07:42]} 22. Qc7 {[%clk 0:05:50]}  Rad8+ {[%clk 0:07:20]} 0-1

[Event "European Senior Team Championship 50+ 2021"]
[White "Hubeny, Pavel"]
[Black "Sorm, Daniel"]
[WhiteFideId "340995"]
[BlackFideId "5400139"]
[WhiteElo "1763"]
[BlackElo "2350"]
[Result "0-1"]
[Round "03"]
[TimeControl "5400+30"]
[Date "2021.09.01"]
[WhiteClock "1:25:16"]
[BlackClock "0:29:13"]

1. e4 {[%clk 1:30:58]}  c5 {[%clk 1:30:36]} 2. f4 {[%clk 1:28:26]}  d5 {[%clk 1:30:50]} 3. e5 {[%clk 1:28:18]}  Nc6 {[%clk 1:30:48]} 4. Nf3 {[%clk 1:28:44]}  Bf5 {[%clk 1:31:00]} 5. Bb5 {[%clk 1:29:10]}  Qb6 {[%clk 1:31:14]} 6. Bxc6+ {[%clk 1:29:36]}  Qxc6 {[%clk 1:31:36]} 7. d3 {[%clk 1:29:45]}  e6 {[%clk 1:31:19]} 8. O-O {[%clk 1:30:07]}  Ne7 {[%clk 1:29:15]} 9. Be3 {[%clk 1:30:25]}  d4 {[%clk 1:25:27]} 10. Bf2 {[%clk 1:30:35]}  Nd5 {[%clk 1:24:54]} 11. g3 {[%clk 1:30:53]}  Be7 {[%clk 1:21:55]} 12. Nbd2 {[%clk 1:30:18]}  h6 {[%clk 1:20:10]} 13. Qe2 {[%clk 1:28:46]}  a5 {[%clk 1:13:48]} 14. a4 {[%clk 1:28:44]}  g5 {[%clk 1:06:59]} 15. fxg5 {[%clk 1:28:46]}  hxg5 {[%clk 1:07:14]} 16. Ne4 {[%clk 1:28:09]}  Bg4 {[%clk 0:59:26]} 17. Ned2 {[%clk 1:24:31]}  O-O-O {[%clk 0:56:10]} 18. Qe4 {[%clk 1:24:14]}  Bf5 {[%clk 0:50:51]} 19. Qe2 {[%clk 1:23:37]}  g4 {[%clk 0:43:26]} 20. Ne1 {[%clk 1:23:55]}  Rxh2 {[%clk 0:41:04]} 21. Ne4 {[%clk 1:23:54]}  Rdh8 {[%clk 0:29:13]} 22. Nf3 {[%clk 1:25:16]}  gxf3 {[%clk 0:29:13]} 23. Qxf3 {[%clk 1:25:16]}  Rh1+ {[%clk 0:29:13]} 24. Qxh1 {[%clk 1:25:16]}  Rxh1+ {[%clk 0:29:13]} 25. Kxh1 {[%clk 1:25:16]}  Bxe4+ {[%clk 0:29:13]} 26. dxe4 {[%clk 1:25:16]}  Ne3 {[%clk 0:29:13]} 0-1

[Event "FIDE Online Chess Olympiad Division 2 Pool A 2021"]
[White "Zeng, Chongsheng"]
[Black "Catinbootsnow"]
[WhiteFideId "8603847"]
[WhiteElo "2499"]
[BlackElo "2475"]
[Result "1-0"]
[Round "01"]
[TimeControl "900+5"]
[Date "2021.09.01"]
[WhiteClock "0:13:05"]
[BlackClock "0:11:06"]

1. e4 {[%clk 0:15:05]}  c5 {[%clk 0:15:05]} 2. f4 {[%clk 0:15:04]}  d5 {[%clk 0:15:02]} 3. d3 {[%clk 0:15:07]}  Nc6 {[%clk 0:14:42]} 4. Nc3 {[%clk 0:14:52]}  d4 {[%clk 0:14:46]} 5. Nce2 {[%clk 0:14:55]}  e5 {[%clk 0:14:50]} 6. Nf3 {[%clk 0:14:58]}  exf4 {[%clk 0:14:46]} 7. Nxf4 {[%clk 0:14:49]}  Bd6 {[%clk 0:14:48]} 8. g3 {[%clk 0:14:52]}  h5 {[%clk 0:14:39]} 9. Nd5 {[%clk 0:14:21]}  h4 {[%clk 0:14:27]} 10. gxh4 {[%clk 0:14:24]}  Bg4 {[%clk 0:14:27]} 11. Bg5 {[%clk 0:14:24]}  Nge7 {[%clk 0:14:03]} 12. Rg1 {[%clk 0:14:22]}  Bh5 {[%clk 0:14:03]} 13. Be2 {[%clk 0:14:15]}  f6 {[%clk 0:13:37]} 14. Bxf6 {[%clk 0:13:55]}  gxf6 {[%clk 0:13:41]} 15. Nxf6+ {[%clk 0:13:59]}  Kf8 {[%clk 0:13:17]} 16. Ng5 {[%clk 0:13:48]}  Qa5+ {[%clk 0:13:17]} 17. c3 {[%clk 0:13:14]}  Bxe2 {[%clk 0:11:01]} 18. Qb3 {[%clk 0:13:16]}  Bh5 {[%clk 0:11:06]} 19. Nxh5 {[%clk 0:13:15]}  c4 {[%clk 0:11:05]} 20. Qxc4 {[%clk 0:13:14]}  Ne5 {[%clk 0:11:06]} 21. Rf1+ {[%clk 0:13:05]} 1-0

[Event "European Senior Team Championship 50+ 2021"]
[White "Hubeny, Pavel"]
[Black "Papacek, Stepan"]
[WhiteFideId "340995"]
[BlackFideId "301035"]
[WhiteElo "1738"]
[BlackElo "2256"]
[Result "0-1"]
[Round "08"]
[TimeControl "5400+30"]
[Date "2021.09.06"]
[WhiteClock "1:29:52"]
[BlackClock "0:29:17"]

1. e4 {[%clk 1:29:55]}  c5 {[%clk 1:25:35]} 2. f4 {[%clk 1:30:20]}  d5 {[%clk 1:25:54]} 3. exd5 {[%clk 1:30:47]}  Nf6 {[%clk 1:26:14]} 4. Bb5+ {[%clk 1:30:49]}  Nbd7 {[%clk 1:26:15]} 5. Nc3 {[%clk 1:31:08]}  a6 {[%clk 1:26:13]} 6. Bxd7+ {[%clk 1:31:32]}  Bxd7 {[%clk 1:25:46]} 7. Nf3 {[%clk 1:31:47]}  b5 {[%clk 1:25:14]} 8. d3 {[%clk 1:32:02]}  b4 {[%clk 1:25:19]} 9. Ne4 {[%clk 1:32:27]}  Nxd5 {[%clk 1:25:35]} 10. O-O {[%clk 1:32:26]}  e6 {[%clk 1:24:49]} 11. Qe1 {[%clk 1:32:37]}  Be7 {[%clk 1:23:50]} 12. Be3 {[%clk 1:32:54]}  Rc8 {[%clk 1:18:30]} 13. Kh1 {[%clk 1:32:38]}  O-O {[%clk 1:18:12]} 14. Nfd2 {[%clk 1:33:01]}  f5 {[%clk 1:13:16]} 15. Ng3 {[%clk 1:33:00]}  Rf6 {[%clk 0:59:47]} 16. Nc4 {[%clk 1:32:34]}  Rh6 {[%clk 1:00:03]} 17. Qf2 {[%clk 1:31:11]}  Bc6 {[%clk 0:57:18]} 18. Rae1 {[%clk 1:31:25]}  Nf6 {[%clk 0:54:01]} 19. Ne5 {[%clk 1:31:01]}  Bb7 {[%clk 0:51:00]} 20. Qe2 {[%clk 1:31:09]}  Bd6 {[%clk 0:47:50]} 21. Bg1 {[%clk 1:29:51]}  Bxe5 {[%clk 0:41:48]} 22. Qxe5 {[%clk 1:29:05]}  Ng4 {[%clk 0:29:17]} 23. Qe2 {[%clk 1:29:52]}  Nxh2 {[%clk 0:29:17]} 24. Nxf5 {[%clk 1:29:52]}  exf5 {[%clk 0:29:17]} 25. Bxh2 {[%clk 1:29:52]}  Qh4 {[%clk 0:29:17]} 26. Qe6+ {[%clk 1:29:52]}  Rxe6 {[%clk 0:29:17]} 27. Rxe6 {[%clk 1:29:52]}  Rc6 {[%clk 0:29:17]} 28. Re2 {[%clk 1:29:52]}  Rh6 {[%clk 0:29:17]} 0-1